fUST/lending_fUST_20260105
["ID","MTS","AMOUNT","RATE_DAILY","PERIOD"]
[400435301,1767550245798,-1500.0,0.00014368,2]
[400435302,1767550245807,-192.54312499,0.00014368,2]
[400435303,1767550245853,9541.01,9.866e-05,2]
[400435304,1767550245881,10000.01,9.866e-05,2]
[400435305,1767550245908,10000.01,9.866e-05,2]
[400435306,1767550245935,10000.01,9.866e-05,2]
[400435307,1767550245962,10000.01,9.866e-05,2]
[400435308,1767550245989,10000.01,9.866e-05,2]
[400435309,1767550246017,10000.01,9.866e-05,2]
[400435310,1767550246045,10000.01,9.866e-05,2]
[400435311,1767550246071,10000.01,9.866e-05,2]
[400435312,1767550246098,10000.01,9.866e-05,2]
[400435313,1767550246188,-3568.61134244,9.866e-05,2]
[400435316,1767550260465,500.0,0.00030136,120]
[400435317,1767550260720,502.46803708,0.00030136,120]
[400435318,1767550280313,280.55092546,0.00030136,120]
[400435320,1767550290334,-5000.0,9.262e-05,2]
[400435321,1767550290543,-5000.0,9.356e-05,2]
[400435324,1767550296382,0.01,9.356e-05,2]
[400435325,1767550296405,4999.99,9.356e-05,2]
[400435326,1767550316366,-151.29,9.451e-05,2]
[400435334,1767550320160,5000.0,9.356e-05,2]
[400435339,1767550321896,189.0,8.129e-05,2]
[400435340,1767550322119,283.5,8.499e-05,2]
[400435341,1767550322574,378.0,8.868e-05,2]
[400435342,1767550323035,472.5,9.238e-05,2]
[400435343,1767550326818,-567.0,9.607e-05,2]
[400435344,1767550326841,-53.00687311,9.669e-05,2]
[400435350,1767550343034,-104.79412689,9.669e-05,2]
[400435351,1767550343330,5000.0,9.572e-05,2]
[400435352,1767550343959,500.0,0.00030136,120]
[400435353,1767550344221,500.0,0.00030136,120]
[400435354,1767550344449,500.0,0.00030136,120]
[400435355,1767550344696,500.0,0.00030136,120]
[400435356,1767550344926,500.0,0.00030136,120]
[400435357,1767550345165,500.0,0.00030136,120]
[400435358,1767550345498,414.03196504,0.00030136,120]
[400435359,1767550345560,500.0,0.00030136,120]
[400435360,1767550345657,500.0,0.00030136,120]
[400435361,1767550345915,500.0,0.00030136,120]
[400435362,1767550346150,500.0,0.00030136,120]
[400435363,1767550346405,500.0,0.00030136,120]
[400435364,1767550346641,500.0,0.00030136,120]
[400435365,1767550346880,500.0,0.00030136,120]
[400435366,1767550347145,500.0,0.00030136,120]
[400435367,1767550347380,500.0,0.00030136,120]
[400435368,1767550348378,500.0,0.00030136,120]
[400435369,1767550348630,500.0,0.00030136,120]
[400435370,1767550348975,634.92699347,0.00030136,120]
[400435371,1767550357527,3193.2136069,9.297e-05,2]
[400435372,1767550359305,-300.0,9.865e-05,2]
[400435373,1767550366485,410.64445171,0.00030136,120]
[400435374,1767550367172,623.74485649,0.0001,14]
[400435375,1767550367198,724.34696242,0.0001,14]
[400435376,1767550367224,1000.0,0.0001,14]
[400435377,1767550367250,1000.0,0.0001,14]
[400435378,1767550367274,1000.0,0.0001,14]
[400435379,1767550367299,651.90818109,0.0001,14]
[400435380,1767550371203,-190.33105522,9.866e-05,2]
[400435381,1767550371454,500.0,0.00030136,120]
[400435382,1767550371867,500.0,0.00030136,120]
[400435383,1767550372098,589.85349692,0.00030136,120]
[400435385,1767550373278,-364.4141403,9.866e-05,2]
[400435386,1767550373965,500.0,0.00030136,120]
[400435387,1767550374252,305.74749036,0.00030136,120]
[400435388,1767550376431,-180.32183878,9.866e-05,2]
[400435389,1767550379166,500.0,0.00030136,120]
[400435390,1767550379414,502.2923886,0.00030136,120]
[400435391,1767550380184,-360.45017998,9.866e-05,2]
[400435392,1767550382568,300.0,9.865e-05,2]
[400435393,1767550382873,-169.3686996,9.866e-05,2]
[400435394,1767550384081,500.0,0.00030136,120]
[400435395,1767550384311,500.0,0.00030136,120]
[400435396,1767550384545,500.0,0.00030136,120]
[400435397,1767550384789,500.0,0.00030136,120]
[400435398,1767550384945,-223.32092733,9.866e-05,2]
[400435399,1767550385036,500.0,0.00030136,120]
[400435400,1767550385263,623.53245404,0.00030136,120]
[400435401,1767550386806,-323.65553412,9.866e-05,2]
[400435402,1767550387993,273.41966547,0.00030136,120]
[400435403,1767550389893,-269.0967354,9.866e-05,2]
[400435404,1767550390128,11.4905261,0.0001,3]
[400435405,1767550392338,-300.0,9.866e-05,2]
[400435406,1767550394557,-387.53459801,9.866e-05,2]
[400435407,1767550394750,1200.0,9.865e-05,2]
[400435408,1767550396742,-188.32954994,9.866e-05,2]
[400435409,1767550397751,163.84,7.243e-05,2]
[400435410,1767550398151,245.76,7.572e-05,2]
[400435411,1767550398264,-188.77398064,9.866e-05,2]
[400435412,1767550398566,327.68,7.901e-05,2]
[400435413,1767550398977,409.59,8.23e-05,2]
[400435414,1767550399387,491.51,8.56e-05,2]
[400435415,1767550400255,573.43,8.889e-05,2]
[400435416,1767550400667,655.35,9.218e-05,2]
[400435417,1767550400849,-235.62681107,9.866e-05,2]
[400435418,1767550401097,737.27,9.547e-05,2]
[400435419,1767550402827,-259.34177295,9.866e-05,2]
[400435420,1767550404854,-215.18080952,9.866e-05,2]
[400435421,1767550406248,-193.00542641,9.866e-05,2]
[400435422,1767550406456,259.34177295,9.865e-05,2]
[400435423,1767550408328,-250.4574325,9.866e-05,2]
[400435424,1767550409842,-191.61728058,9.866e-05,2]
[400435425,1767550411894,500.0,0.00030136,120]
[400435426,1767550412121,500.0,0.00030136,120]
[400435427,1767550412361,442.08756305,0.00030136,120]
[400435428,1767550413214,-251.19992171,9.866e-05,2]
[400435429,1767550419496,374.66854209,9.078e-05,2]
[400435430,1767550432965,500.0,0.00030136,120]
[400435431,1767550433243,500.0,0.00030136,120]
[400435432,1767550433490,500.0,0.00030136,120]
[400435433,1767550433734,538.34523319,0.00030136,120]
[400435434,1767550442258,300.0,9.865e-05,2]
[400435435,1767550472473,184.57,7.9e-05,2]
[400435436,1767550472723,500.0,9.864e-05,2]
[400435437,1767550472757,500.0,9.864e-05,2]
[400435438,1767550472786,500.0,9.864e-05,2]
[400435439,1767550472820,500.0,9.864e-05,2]
[400435440,1767550472850,500.0,9.864e-05,2]
[400435441,1767550472882,500.0,9.864e-05,2]
[400435442,1767550472911,176.99968496,9.864e-05,2]
[400435443,1767550472933,323.00031504,9.864e-05,2]
[400435444,1767550472975,500.0,9.864e-05,2]
[400435445,1767550473002,391.68424295,9.864e-05,2]
[400435446,1767550473030,500.0,9.864e-05,2]
[400435447,1767550473072,500.0,9.864e-05,2]
[400435448,1767550473113,500.0,9.864e-05,2]
[400435449,1767550473157,500.0,9.864e-05,2]
[400435450,1767550473187,500.0,9.864e-05,2]
[400435451,1767550473218,500.0,9.864e-05,2]
[400435452,1767550473248,500.0,9.864e-05,2]
[400435453,1767550473300,230.72,8.229e-05,2]
[400435454,1767550473344,500.0,9.864e-05,2]
[400435455,1767550473375,500.0,9.864e-05,2]
[400435456,1767550473405,500.0,9.864e-05,2]
[400435457,1767550473439,500.0,9.864e-05,2]
[400435458,1767550473475,624.55430502,9.864e-05,2]
[400435459,1767550473513,500.0,9.864e-05,2]
[400435460,1767550473549,641.0683864,9.864e-05,2]
[400435461,1767550473587,215.30288546,9.864e-05,2]
[400435462,1767550473619,500.0,9.864e-05,2]
[400435463,1767550473873,500.0,9.864e-05,2]
[400435464,1767550473912,73.67986513,9.864e-05,2]
[400435465,1767550473943,426.32013487,9.864e-05,2]
[400435466,1767550473991,500.0,9.864e-05,2]
[400435467,1767550474032,500.0,9.864e-05,2]
[400435468,1767550474069,420.58588671,9.864e-05,2]
[400435469,1767550474105,500.0,9.864e-05,2]
[400435470,1767550474145,500.0,9.864e-05,2]
[400435471,1767550474194,500.0,9.864e-05,2]
[400435472,1767550474222,276.86,8.558e-05,2]
[400435473,1767550474288,323.0,8.888e-05,2]
[400435474,1767550474341,369.15,9.217e-05,2]
[400435475,1767550474540,415.29,9.546e-05,2]
[400435477,1767550493727,500.0,0.00030136,120]
[400435478,1767550493980,233.59197091,0.00030136,120]
[400435479,1767550543781,175.7,8.224e-05,2]
[400435480,1767550544180,210.84,8.553e-05,2]
[400435481,1767550544568,245.98,8.882e-05,2]
[400435482,1767550544959,281.12,9.211e-05,2]
[400435483,1767550545364,316.26,9.54e-05,2]
[400435484,1767550555276,500.0,0.00030136,120]
[400435485,1767550555505,500.0,0.00030136,120]
[400435486,1767550555747,579.73909345,0.00030136,120]
[400435489,1767550591503,1000.0,0.0001,10]
[400435490,1767550591530,1000.0,0.0001,10]
[400435492,1767550612947,155.89,9.273e-05,2]
[400435493,1767550612980,-300.0,9.864e-05,2]
[400435494,1767550613357,175.38,9.604e-05,2]
[400435495,1767550622277,300.0,9.864e-05,2]
[400435496,1767550638289,-300.0,9.865e-05,2]
[400435497,1767550638318,-300.0,9.865e-05,2]
[400435498,1767550638348,-300.0,9.865e-05,2]
[400435499,1767550638376,-1200.0,9.865e-05,2]
[400435500,1767550669867,-279.09699804,9.865e-05,2]
[400435501,1767550669901,-500.0,9.865e-05,2]
[400435502,1767550669931,-500.0,9.865e-05,2]
[400435503,1767550669961,-500.0,9.865e-05,2]
[400435504,1767550669990,-500.0,9.865e-05,2]
[400435505,1767550670021,-288.93371042,9.865e-05,2]
[400435506,1767550670054,-500.0,9.865e-05,2]
[400435507,1767550670084,-500.0,9.865e-05,2]
[400435508,1767550670112,-500.0,9.865e-05,2]
[400435509,1767550670140,-500.0,9.865e-05,2]
[400435510,1767550670171,-363.94858308,9.865e-05,2]
[400435511,1767550670477,-136.05141692,9.865e-05,2]
[400435512,1767550670510,-500.0,9.865e-05,2]
[400435513,1767550670546,-500.0,9.865e-05,2]
[400435514,1767550670584,-500.0,9.865e-05,2]
[400435515,1767550670621,-500.0,9.865e-05,2]
[400435516,1767550670660,-500.0,9.865e-05,2]
[400435517,1767550670698,-500.0,9.865e-05,2]
[400435518,1767550670731,-500.0,9.865e-05,2]
[400435519,1767550670764,-500.0,9.865e-05,2]
[400435520,1767550670804,-500.0,9.865e-05,2]
[400435521,1767550670842,-277.90716616,9.865e-05,2]
[400435522,1767550671017,-172.09283384,9.865e-05,2]
[400435523,1767550671050,-500.0,9.865e-05,2]
[400435524,1767550671081,-402.72825611,9.865e-05,2]
[400435525,1767550671113,-246.14476505,9.865e-05,2]
[400435526,1767550671145,-500.0,9.865e-05,2]
[400435527,1767550671177,-293.45204293,9.865e-05,2]
[400435528,1767550671209,-268.95398741,9.865e-05,2]
[400435529,1767550678320,156.95,8.808e-05,2]
[400435530,1767550678774,196.19,9.175e-05,2]
[400435531,1767550679201,235.42,9.542e-05,2]
[400435532,1767550679970,500.0,0.00030136,120]
[400435533,1767550680262,500.0,0.00030136,120]
[400435534,1767550680512,500.0,0.00030136,120]
[400435535,1767550680772,558.84075901,0.00030136,120]
[400435536,1767550682835,300.0,9.865e-05,2]
[400435537,1767550682912,300.0,9.865e-05,2]
[400435539,1767550694687,1200.0,9.865e-05,2]
[400435540,1767550742243,162.0,9.865e-05,2]
[400435541,1767550749719,158.34,8.826e-05,2]
[400435542,1767550750166,197.93,9.194e-05,2]
[400435543,1767550750549,237.51,9.561e-05,2]
[400435545,1767550794007,2088.92622932,9.865e-05,2]
[400435546,1767550794034,2911.07377068,9.865e-05,2]
[400435547,1767550810032,493.14183944,0.00030136,120]
[400435548,1767550817247,5000.0,9.865e-05,2]
[400435549,1767550821226,180.65,8.177e-05,2]
[400435550,1767550821657,216.78,8.504e-05,2]
[400435551,1767550822036,252.91,8.831e-05,2]
[400435552,1767550822416,289.04,9.159e-05,2]
[400435553,1767550822864,325.17,9.486e-05,2]
[400435554,1767550823289,361.3,9.813e-05,2]
[400435555,1767550840457,463.08622932,9.865e-05,2]
[400435556,1767550840481,4536.91377068,9.865e-05,2]
[400435557,1767550862902,300.0,9.865e-05,2]
[400435559,1767550863387,5000.0,9.865e-05,2]
[400435561,1767550886865,163.09622932,9.865e-05,2]
[400435562,1767550886891,4836.90377068,9.865e-05,2]
[400435563,1767550891275,156.32,9.446e-05,2]
[400435585,1767550903951,211.464,9.669e-05,2]
[400435586,1767550910006,4795.32222932,9.865e-05,2]
[400435588,1767550976256,7448.4698315,8.889e-05,2]
[400435598,1767551031915,2551.5401685,8.878e-05,2]
[400435599,1767551031940,7448.4598315,8.878e-05,2]
[400435601,1767551093034,159.56,9.136e-05,2]
[400435602,1767551093450,179.51,9.463e-05,2]
[400435603,1767551112375,2212.4801685,9.785e-05,2]
[400435604,1767551112399,2787.5198315,9.785e-05,2]
[400435617,1767551135299,5000.0,9.785e-05,2]
[400435618,1767551151139,499.77739692,9.785e-05,2]
[400435632,1767551166259,-181.23,8.13e-05,2]
[400435633,1767551166285,-271.84,8.499e-05,2]
[400435634,1767551166309,-16.60804233,8.869e-05,2]
[400435635,1767551181344,-598.6617561,8.78e-05,2]
[400435639,1767551183835,-264.53742163,8.78e-05,2]
[400435640,1767551185970,-8.82176541,8.78e-05,2]
[400435641,1767551185996,-157.85823459,8.869e-05,2]
[400435651,1767551196547,-187.99372308,8.869e-05,2]
[400435701,1767551235048,177.58,7.022e-05,2]
[400435702,1767551235578,266.38,7.342e-05,2]
[400435703,1767551236013,355.17,7.661e-05,2]
[400435704,1767551236401,443.96,7.98e-05,2]
[400435705,1767551236801,532.75,8.299e-05,2]
[400435706,1767551237227,621.55,8.618e-05,2]
[400435707,1767551237647,710.34,8.938e-05,2]
[400435708,1767551241205,-557.58574659,9.257e-05,2]
[400435722,1767551264098,237.00000001,9.228e-05,2]
[400435730,1767551287580,500.0,9.247e-05,2]
[400435739,1767551311022,161.82,7.557e-05,2]
[400435740,1767551311325,215.76,7.885e-05,2]
[400435741,1767551311742,269.7,8.214e-05,2]
[400435742,1767551312147,323.64,8.542e-05,2]
[400435743,1767551312536,377.58,8.871e-05,2]
[400435744,1767551312931,431.52,9.2e-05,2]
[400435746,1767551318348,-485.05049706,9.528e-05,2]
[400435747,1767551333910,1000.0,9.371e-05,2]
[400435748,1767551342218,5000.0,9.371e-05,2]
[400435795,1767551365079,5000.0,9.518e-05,2]
[400435796,1767551376462,1527.4690248,8.9e-05,2]
[400435797,1767551384015,150.67,7.849e-05,2]
[400435798,1767551384505,175.78,8.151e-05,2]
[400435799,1767551384897,200.89,8.453e-05,2]
[400435800,1767551385285,226.0,8.755e-05,2]
[400435801,1767551385697,251.11,9.057e-05,2]
[400435829,1767551421244,-333.64093476,9.667e-05,2]
[400435830,1767551424327,-270.99017907,9.667e-05,2]
[400435831,1767551426563,-152.82894366,9.667e-05,2]
[400435845,1767551431978,-973.0,9.667e-05,2]
[400435846,1767551431994,-2704.21360694,9.667e-05,2]
[400435847,1767551432006,-489.0,9.667e-05,2]
[400435848,1767551432018,-76.32633557,9.667e-05,2]
[400435849,1767551432032,-197.0526196,9.667e-05,2]
[400435850,1767551433781,5000.0,9.657e-05,2]
[400435862,1767551438035,-357.9473804,9.667e-05,2]
[400435863,1767551438046,-388.0,9.765e-05,2]
[400435864,1767551438056,-195.36789863,9.765e-05,2]
[400435865,1767551438067,-500.0,9.765e-05,2]
[400435866,1767551438076,-500.0,9.765e-05,2]
[400435867,1767551438086,-500.0,9.765e-05,2]
[400435868,1767551438096,-195.36789862,9.765e-05,2]
[400435869,1767551438106,-500.0,9.765e-05,2]
[400435870,1767551438116,-500.0,9.765e-05,2]
[400435871,1767551438126,-500.0,9.765e-05,2]
[400435872,1767551438135,-500.0,9.765e-05,2]
[400435873,1767551438145,-500.0,9.765e-05,2]
[400435874,1767551438155,-500.0,9.765e-05,2]
[400435875,1767551438164,-217.25359729,9.765e-05,2]
[400435877,1767551438174,-127.21834295,9.766e-05,2]
[400435878,1767551438186,-24823.29622394,9.766e-05,2]
[400435879,1767551438198,-1047.58776972,9.766e-05,2]
[400435923,1767551440524,-3e-08,9.766e-05,2]
[400435925,1767551440536,-4214.26165727,9.766e-05,2]
[400436631,1767551447764,-1607.03640909,9.766e-05,2]
[400436633,1767551447775,-10821.35483423,9.766e-05,2]
[400436635,1767551447786,-2700.19914891,9.766e-05,2]
[400436817,1767551487226,10000.01,8.946e-05,2]
[400436818,1767551503502,-1356.69036437,8.946e-05,2]
[400436819,1767551503584,-10000.01,8.946e-05,2]
[400436820,1767551503877,-492.33791698,8.946e-05,2]
[400436821,1767551516188,-4481.61846125,8.946e-05,2]
[400436822,1767551516270,1036.7730775,8.856e-05,2]
[400436823,1767551516490,-854.42858243,8.856e-05,2]
[400436824,1767551517864,211.08,7.35e-05,2]
[400436825,1767551518285,316.62,7.684e-05,2]
[400436826,1767551518685,422.16,8.019e-05,2]
[400436827,1767551519206,527.69,8.353e-05,2]
[400436828,1767551519739,633.23,8.687e-05,2]
[400436829,1767551526332,-300.0,9.021e-05,2]
[400436830,1767551528974,-400.30041109,9.021e-05,2]
[400436832,1767551539401,896.06324393,9.011e-05,2]
[400436836,1767551586040,3854.0,0.00030136,120]
[400436837,1767551593322,193.0,6.886e-05,2]
[400436838,1767551593722,385.99,7.214e-05,2]
[400436839,1767551594120,578.99,7.542e-05,2]
[400436840,1767551594507,771.99,7.87e-05,2]
[400436841,1767551594909,964.98,8.197e-05,2]
[400436842,1767551595299,1157.98,8.525e-05,2]
[400436843,1767551595717,1350.97,8.853e-05,2]
[400436848,1767551600199,-1543.97,9.181e-05,2]
[400436852,1767551661291,-263.17107362,9.414e-05,2]
[400436853,1767551669995,238.64,7.217e-05,2]
[400436854,1767551670421,357.96,7.545e-05,2]
[400436855,1767551670860,477.28,7.873e-05,2]
[400436856,1767551671259,596.61,8.201e-05,2]
[400436857,1767551674155,-359.30954112,8.529e-05,2]
[400436858,1767551677353,-318.34293847,8.529e-05,2]
[400436859,1767551695506,-38.27752041,8.529e-05,2]
[400436860,1767551695530,-253.91446934,8.857e-05,2]
[400436861,1767551697006,-435.57414143,8.857e-05,2]
[400436873,1767551716802,3194.3787998,8.714e-05,2]
[400436876,1767551746592,173.01,7.079e-05,2]
[400436877,1767551746991,259.52,7.401e-05,2]
[400436878,1767551747378,346.03,7.723e-05,2]
[400436879,1767551747777,432.54,8.044e-05,2]
[400436880,1767551748186,519.04,8.366e-05,2]
[400436881,1767551748592,605.55,8.688e-05,2]
[400436882,1767551751233,-350.24968427,9.01e-05,2]
[400436883,1767551753998,-300.08689002,9.01e-05,2]
[400436884,1767551820709,221.52,7.452e-05,2]
[400436885,1767551821214,295.37,7.776e-05,2]
[400436886,1767551821625,369.21,8.1e-05,2]
[400436887,1767551822073,443.05,8.424e-05,2]
[400436888,1767551822493,516.89,8.748e-05,2]
[400436889,1767551823820,-245.72666961,9.073e-05,2]
[400436890,1767551825232,-306.01770426,9.073e-05,2]
[400436891,1767551844168,-38.98562613,9.073e-05,2]
[400436892,1767551844193,-114.15041704,9.171e-05,2]
[400436893,1767551859701,5000.0,9.063e-05,2]
[400436897,1767551883706,160.0,0.00030136,120]
[400436898,1767551883737,5000.0,9.161e-05,2]
[400436899,1767551894542,260.08,7.157e-05,2]
[400436900,1767551894930,390.11,7.482e-05,2]
[400436901,1767551895327,520.15,7.808e-05,2]
[400436902,1767551895717,650.19,8.133e-05,2]
[400436903,1767551896151,780.23,8.458e-05,2]
[400436904,1767551896629,910.26,8.784e-05,2]
[400436905,1767551897032,1040.3,9.109e-05,2]
[400436906,1767551907151,448.69,9.161e-05,2]
[400436907,1767551907179,4551.31,9.161e-05,2]
[400436908,1767551930763,1000.15736226,8.811e-05,2]
[400436909,1767551931108,4448.54263774,9.161e-05,2]
[400436910,1767551931136,551.45736226,9.161e-05,2]
[400436911,1767551948067,300.0,9.161e-05,2]
[400436912,1767551956336,5000.0,9.161e-05,2]
[400436913,1767551971608,262.31,7.144e-05,2]
[400436914,1767551972137,393.46,7.469e-05,2]
[400436915,1767551972520,524.61,7.793e-05,2]
[400436916,1767551972554,964.09687612,9.161e-05,2]
[400436917,1767551972929,655.76,8.118e-05,2]
[400436918,1767551973362,786.92,8.443e-05,2]
[400436919,1767551973766,561.39576162,8.767e-05,2]
[400436920,1767551991831,-500.0,8.679e-05,2]
[400436921,1767551993974,-300.0,8.679e-05,2]
[400436922,1767551997735,-311.46308135,8.679e-05,2]
[400436923,1767552000430,-178.07,8.679e-05,2]
[400436924,1767552003048,-157.17890079,8.679e-05,2]
[400436925,1767552004816,-194.604636,8.679e-05,2]
[400436926,1767552009263,-197.98311419,8.679e-05,2]
[400436927,1767552011291,-306.23836733,8.679e-05,2]
[400436928,1767552013430,-165.46191991,8.679e-05,2]
[400436929,1767552016553,-169.32352975,8.679e-05,2]
[400436930,1767552018038,-251.83622399,8.679e-05,2]
[400436931,1767552020022,-153.07,8.679e-05,2]
[400436932,1767552024281,-183.5603008,8.679e-05,2]
[400436933,1767552025819,-633.58331085,8.679e-05,2]
[400436953,1767552048237,240.75,7.009e-05,2]
[400436954,1767552048622,361.12,7.328e-05,2]
[400436955,1767552049026,481.49,7.646e-05,2]
[400436956,1767552049428,601.87,7.965e-05,2]
[400436957,1767552049832,722.24,8.284e-05,2]
[400436958,1767552050234,842.61,8.602e-05,2]
[400436959,1767552051779,-170.05821912,8.679e-05,2]
[400436960,1767552055014,-334.42041424,8.679e-05,2]
[400436961,1767552057091,-284.05749506,8.679e-05,2]
[400436962,1767552062151,-159.06,8.679e-05,2]
[400436963,1767552064083,-350.03048662,8.679e-05,2]
[400436964,1767552064106,-43.26986579,8.679e-05,2]
[400436965,1767552065529,-448.34591873,8.679e-05,2]
[400436966,1767552071172,-50.38421548,8.679e-05,2]
[400436967,1767552071206,-223.39986579,8.766e-05,2]
[400436968,1767552071274,5000.0,8.669e-05,2]
[400436969,1767552094203,1749.93,8.669e-05,2]
[400436970,1767552094228,3250.07,8.669e-05,2]
[400436971,1767552094776,-205.74623607,8.766e-05,2]
[400436972,1767552096867,-244.17662665,8.766e-05,2]
[400436973,1767552100598,-526.67727149,8.766e-05,2]
[400436974,1767552100629,-60.66311929,8.843e-05,2]
[400436975,1767552102734,-297.16605921,8.843e-05,2]
[400436976,1767552102763,-115.41083879,8.921e-05,2]
[400436977,1767552104058,-237.08053768,8.921e-05,2]
[400436978,1767552107343,-155.20132184,8.921e-05,2]
[400436979,1767552109482,-222.47987182,8.921e-05,2]
[400436980,1767552111148,1122.84729356,8.766e-05,2]
[400436981,1767552120008,5000.0,8.766e-05,2]
[400436982,1767552124206,198.0,7.124e-05,2]
[400436983,1767552124624,297.0,7.448e-05,2]
[400436984,1767552125043,396.0,7.771e-05,2]
[400436985,1767552125436,495.0,8.095e-05,2]
[400436986,1767552125814,594.0,8.419e-05,2]
[400436987,1767552126227,693.0,8.743e-05,2]
[400436988,1767552143314,5000.0,8.921e-05,2]
[400436989,1767552144640,-792.0,9.067e-05,2]
[400437001,1767552168668,-5000.0,9.297e-05,2]
[400437002,1767552169144,-891.0,9.391e-05,2]
[400437014,1767552190135,5000.0,9.391e-05,2]
[400437015,1767552191135,321.01138484,0.00030136,120]
[400437016,1767552193518,-300.0,9.416e-05,2]
[400437017,1767552199563,174.24,7.755e-05,2]
[400437018,1767552199954,217.8,8.078e-05,2]
[400437019,1767552200346,261.36,8.401e-05,2]
[400437020,1767552201095,304.92,8.724e-05,2]
[400437021,1767552201489,348.48,9.047e-05,2]
[400437022,1767552201891,392.04,9.37e-05,2]
[400437023,1767552216813,-5000.0,9.596e-05,2]
[400437024,1767552216965,-435.6,9.693e-05,2]
[400437060,1767552238150,5000.0,9.693e-05,2]
[400437061,1767552240908,-300.0,9.761e-05,2]
[400437062,1767552240939,-300.0,9.761e-05,2]
[400437063,1767552240966,-1200.0,9.761e-05,2]
[400437074,1767552260606,-300.0,9.762e-05,2]
[400437075,1767552260638,-300.0,9.762e-05,2]
[400437076,1767552261051,5000.0,9.761e-05,2]
[400437082,1767552275760,-300.0,9.764e-05,2]
[400437084,1767552284043,5000.0,9.765e-05,2]
[400437085,1767552294561,4400.01,9.666e-05,2]
[400437086,1767552294592,10000.01,9.666e-05,2]
[400437087,1767552294629,10000.01,9.666e-05,2]
[400437088,1767552294662,10000.01,9.666e-05,2]
[400437089,1767552294690,10000.01,9.666e-05,2]
[400437090,1767552294718,10000.01,9.666e-05,2]
[400437097,1767552336288,-183.62973837,8.739e-05,2]
[400437098,1767552338510,-38.56026163,8.739e-05,2]
[400437099,1767552338541,-333.29,9.136e-05,2]
[400437100,1767552338569,-4256.30947674,9.472e-05,2]
[400437101,1767552350885,-743.69052326,9.472e-05,2]
[400437102,1767552350916,-444.38,9.533e-05,2]
[400437103,1767552350944,-1014.65669259,9.568e-05,2]
[400437104,1767552350973,-300.0,9.665e-05,2]
[400437105,1767552364393,-300.0,9.665e-05,2]
[400437106,1767552376097,-5000.0,9.569e-05,2]
[400437107,1767552381253,-161.88226147,8.834e-05,2]
[400437108,1767552383294,-642.48941436,8.834e-05,2]
[400437109,1767552384845,-342.87325689,8.834e-05,2]
[400437110,1767552385341,-839.65819118,8.834e-05,2]
[400437111,1767552397524,-1752.07043021,9.569e-05,2]
[400437112,1767552397556,-500.0,9.665e-05,2]
[400437113,1767552397587,-500.0,9.665e-05,2]
[400437114,1767552397619,-500.0,9.665e-05,2]
[400437115,1767552397651,-500.0,9.665e-05,2]
[400437116,1767552397684,-500.0,9.665e-05,2]
[400437117,1767552397716,-500.0,9.665e-05,2]
[400437118,1767552410009,-348.52789711,8.872e-05,2]
[400437119,1767552412503,204.13,7.821e-05,2]
[400437120,1767552416262,-408.26,8.193e-05,2]
[400437121,1767552416291,-28.84,8.566e-05,2]
[400437124,1767552417799,-349.60058564,8.566e-05,2]
[400437125,1767552419229,-233.93941436,8.566e-05,2]
[400437126,1767552419253,-397.93058564,8.872e-05,2]
[400437127,1767552421955,-653.60361348,8.872e-05,2]
[400437128,1767552423404,-205.10608061,8.871e-05,2]
[400437129,1767552425494,-94.89391939,8.871e-05,2]
[400437130,1767552425516,-383.26421814,8.872e-05,2]
[400437131,1767552428581,-160.77133971,8.872e-05,2]
[400437132,1767552430802,-315.35540131,8.872e-05,2]
[400437136,1767552432349,-223.52483674,8.872e-05,2]
[400437137,1767552434478,-155.84241914,8.872e-05,2]